{"text_format":"1","workbook":"xlsx","n_sheets":6,"sheets":["測定・分析等委託申請書","別表２","別表２ (ドロップリスト用)","測定・分析等委託承認書","実績簿（管理責任者用）","管理表転記用"],"not_rendered":{"charts":0,"images":0,"macros":1,"external_links":0,"defined_names":1,"comments":2,"pivot_tables":0},"unopened":[],"bounds":{"document_bytes":16777216,"sheet_cells":100000,"rows_first":2000,"rows_last":500,"rows_between":2000,"halvings":0,"cell_chars":16384,"cell_head_chars":4096},"cells_cut":0,"cells_raw":0,"read":"whole","date_system":"1900"}

{"sheet":"測定・分析等委託申請書","index":0,"n_rows":25,"n_cols":26,"rows_kept":25,"cut":false,"hidden":false,"merged":[[12,0,14,0],[13,1,13,2],[13,3,13,16],[14,3,14,16],[14,1,14,2],[1,0,1,16],[7,0,7,16],[8,1,8,2],[8,3,8,16],[9,1,9,2],[9,3,9,16],[10,1,10,7],[10,8,10,9],[10,10,10,16],[11,1,11,7],[11,8,11,9],[11,10,11,16],[15,1,15,3],[15,4,15,16],[17,12,17,16],[12,1,12,2],[12,3,12,4],[12,5,12,6],[12,7,12,16],[16,1,16,2],[16,3,16,8],[16,9,16,10],[16,11,16,16],[17,9,17,10],[17,2,17,3],[17,5,17,7],[18,5,18,6],[18,7,18,10],[18,11,18,12],[18,13,18,16],[18,1,18,4],[19,15,19,16],[21,2,21,3],[21,5,21,10],[19,9,19,10],[19,2,19,3],[19,5,19,7],[20,1,20,5],[20,7,20,10],[19,12,19,13]]}
["様式２（第６条関係）"]
["測定・分析等委託申請書"]
[]
[null,null,null,null,null,null,null,null,null,null,null,null,null,null,null,null,"　年　月　日"]
[]
["京都大学北部キャンパス機器分析拠点　拠点長　殿"]
[]
["京都大学北部キャンパス機器分析拠点が実施する測定、分析等について、下記のとおり申請します。なお、申請が承認された場合には、京都大学北部キャンパス機器分析拠点共同利用規程を遵守します。"]
["所属機関","名 称",null,null,null,null,null,null,null,null,null,null,null,null,null,null,null,null,null,null,"設備等\n番号","設備等名称","粉末Ｘ線回折装置 SmartLab-SS","トリプル四重極型ガスクロマトグラフ質量分析計　","EXM型ESRスペクトロメーター　URI27658","高分解能質量分析計システム"]
["又は組織等","住 所",null,null,null,null,null,null,null,null,null,null,null,null,null,null,null,null,null,null,"S-17","粉末Ｘ線回折装置 SmartLab-SS","粉末試料のX線回折測定","親水性代謝物のアンターゲット分析","電子スピン共鳴(ESR)スペクトルの測定","低分子化合物の精密質量測定"]
["申請者",null,null,null,null,null,null,null,"職名",null,null,null,null,null,null,null,null,null,null,null,"A-8","トリプル四重極型ガスクロマトグラフ質量分析計　",null,null,null,"タンパク質の同定（電気泳動・酵素消化を含む）"]
["電話番号",null,null,null,null,null,null,null,"ﾒｰﾙｱﾄﾞﾚｽ",null,null,null,null,null,null,null,null,null,null,null,"A-21","EXM型ESRスペクトロメーター　URI27658"]
["委託内容","設備等番号",null,null,null,"設備等名称",null,{"$f":"VLOOKUP(D13,別表２!A6:B11,2,0)","v":{"$error":"#N/A"}},null,null,null,null,null,null,null,null,null,null,null,null,"A-25","高分解能質量分析計システム"]
[null,"委託内容"]
[null,"特記事項"]
["委託料請求先","住所・機関(部署)名・職名・氏名"]
["＊申請者と異なる場合のみ記載","電話番号",null,null,null,null,null,null,null,"ﾒｰﾙｱﾄﾞﾚｽ"]
["予算区分",null,"大学運営費",null,"（","ミッション実現加速化経費",null,null,null,"特殊要因経費",null,null,"その他【　　　　　　　　　　　　】"]
[null,"（北部内の申請者のみ記載）",null,null,null,"予算科目：",null,null,null,null,null,"予算部署："]
["＊学内者のみ記載",null,"寄附金",null,null,"科学研究費助成事業等",null,null,null,"受託研究等",null,null,"間接経費",null,null,"機関経理補助金"]
[null,"（外部資金の場合）ＰＪコード　",null,null,null,null,"【",null,null,null,null,"】"]
[null,null,"その他",null,"【",null,null,null,null,null,null,null,"】"]
["委託申請にあたっての注意事項"]
["１．本申請書は、北部キャンパス機器分析拠点運営推進室へ提出してください。"]
["２．申請内容に変更が生じた場合は、速やかに北部キャンパス機器分析拠点運営推進室へ連絡してください。"]

{"sheet":"別表２","index":1,"n_rows":16,"n_cols":13,"rows_kept":16,"cut":false,"hidden":false,"merged":[[2,0,3,0],[2,1,3,1],[2,2,3,2],[2,4,3,4],[2,5,3,5],[2,7,2,9],[2,10,3,10],[9,2,10,2],[2,3,3,3],[2,6,3,6]]}
["別表２.委託料"]
[]
["設備等\n番号","設備等名称","メーカー名","設備等\n保有部局","委託内容","利用単位","関数用","単価",null,null,"備考"]
[null,null,null,null,null,null,null,"第３条第１号に掲げる者","第３条第２号に掲げる者","第３条第３号に掲げる者"]
[null,null,null,null,null,null,"関数用","学内","学術機関","民間機関",null,null,"1回当たり\n(事前講習)"]
["S-17","粉末Ｘ線回折装置 SmartLab-SS","㈱リガク","理学研究科","粉末試料のX線回折測定","1回当たり",{"$f":"A6&E6&F6","v":"S-17粉末試料のX線回折測定1回当たり"},1900,4870,9400]
["A-8","トリプル四重極型ガスクロマトグラフ質量分析計　","㈱島津製作所","農学研究科","親水性代謝物のアンターゲット分析","1回当たり",{"$f":"A7&E7&F7","v":"A-8親水性代謝物のアンターゲット分析1回当たり"},68400]
["A-21","EXM型ESRスペクトロメーター　URI27658","米国ブルカーコーポレーション社","農学研究科","電子スピン共鳴(ESR)スペクトルの測定","1時間当たり","A-21電子スピン共鳴(ESR)スペクトルの測定1時間当たり",1990,1990,5200]
[null,null,null,null,null,"1日当たり",{"$f":"A8&E8&F9","v":"A-21電子スピン共鳴(ESR)スペクトルの測定1日当たり"},5960,5960,15400]
["A-25","高分解能質量分析計システム","米国サーモフィッシャーサイエンティフィック社","農学研究科","低分子化合物の精密質量測定","1回当たり","A-25低分子化合物の精密質量測定1回当たり",10670,24320,52700]
[null,null,null,null,"タンパク質の同定（電気泳動・酵素消化を含む）","1回当たり",{"$f":"A10&E11&F11","v":"A-25タンパク質の同定（電気泳動・酵素消化を含む）1回当たり"},21490,46310,97900]
["B-2","電場型フーリエ変換質量分析計","サーモフィッシャーサイエンティフィック社","生命科学研究科","京都大学大学院生命科学研究科生命動態共用研究施設解析受託内規の定めに従う"]
[]
["１．上記表中の委託料単価は、利用単位あたりに係る金額（消費税相当額を含む。）であり、これに利用単位数を乗じた金額を委託料とする。"]
["２．１時間未満の測定、分析等及び１時間を超える測定、分析等に係る１時間未満の端数については、それぞれ１時間の測定、分析等として、委託料を算出するものとする。"]
["３．第３条第４号に掲げる者の委託料単価は、当該者の所属・身分等を勘案のうえ、拠点長が指示するものとする。"]

{"sheet":"別表２ (ドロップリスト用)","index":2,"n_rows":15,"n_cols":4,"rows_kept":15,"cut":false,"hidden":true,"merged":[]}
["S-17","A-8","A-21","A-25"]
["粉末試料のX線回折測定","親水性代謝物のアンターゲット分析","電子スピン共鳴(ESR)スペクトルの測定","低分子化合物の精密質量測定"]
[null,null,null,"タンパク質の同定（電気泳動・酵素消化を含む）"]
[]
[]
[]
[]
[]
[]
["【ドロップリスト用　作成手順】"]
["●１行目に設備等番号を入力（機器が追加されるごとに右に追加していく）"]
["●当該機器の委託内容を同列に追記する"]
["●測定・分析等委託申請書シートの「委託内容」欄に設定している入力規則には元の値の参照値に「=OFFSET('別表２ (ドロップリスト用)'!$A$2,,MATCH($D$13,'別表２ (ドロップリスト用)'!$A$1:$D$1,0)-1,4)」という数式が入っている"]
["　この数式は、測定・分析等委託申請書シートの設備等番号（D13）の文字列に該当するものを、本シートのA1:D1から探し、その下部（委託内容）4行分を取得するというものになっている"]
["　よって、本シートに設備等番号および委託内容を追加した場合は、当該数式の「A1:D1」の範囲を再設定する必要がある（例：E列やF列に設備を追加したら、A1:E1、A1:F1に変更する）"]

{"sheet":"測定・分析等委託承認書","index":3,"n_rows":31,"n_cols":9,"rows_kept":31,"cut":false,"hidden":true,"merged":[[14,1,14,8],[15,1,15,8],[3,7,3,8],[2,7,2,8],[5,1,5,2],[10,1,10,8],[13,1,13,8],[20,4,20,8],[30,4,32,8],[21,3,21,4],[26,1,26,8],[27,1,27,8],[28,1,28,8],[17,1,17,2],[18,3,18,4],[18,5,18,6],[19,1,19,2],[19,5,19,6],[17,3,17,8]]}
[null,null,null,null,null,null,null,"承認番号：",{"$f":"'実績簿（管理責任者用）'!A5","v":0}]
[]
[null,null,null,null,null,null,null,"事務連絡"]
[null,null,null,null,null,null,null,"●●年●●月●●日"]
[]
[null,{"$f":"測定・分析等委託申請書!B11:H11","v":0},null,"殿"]
[]
[null,null,null,null,null,null,null,null,"京都大学北部キャンパス機器分析拠点　拠点長"]
[]
[]
[null,"測定・分析等委託承認書"]
[]
[]
[null,"　●●年●●月●●日に申請のありました下記測定・分析等委託について、承認します。"]
[]
[null,"記"]
[]
[null,"委託内容：",null,{"$f":"測定・分析等委託申請書!D14","v":0}]
[]
[null,"設備内容：",null,"（設備等番号）",{"$f":"測定・分析等委託申請書!D13","v":0}]
[null,null,null,"（設備等名称）",{"$f":"測定・分析等委託申請書!H13","v":{"$error":"#N/A"}}]
[]
[]
[]
[]
[null,"※委託にあたっての留意点"]
[null,"　・別表２に定める委託料は測定・分析等終了後に請求いたします。"]
[null,"　・委託内容の変更が必要な場合は、設備等の担当者に申し出てください。\n　　なお、分析試料を提出した後は、委託内容の変更又は委託の取止めはできません。"]
[null,"　・その他、ご不明な点がありましたら設備等の担当者もしくは拠点運営推進室までお問い合わせください。"]
[]
[null,null,null,null,"担　当：北部キャンパス機器分析拠点　拠点運営推進室\nT  E  L：075-753-3607\ne-mail：nocias-kyotenjimu@mail2.adm.kyoto-u.ac.jp"]

{"sheet":"実績簿（管理責任者用）","index":4,"n_rows":38,"n_cols":14,"rows_kept":38,"cut":false,"hidden":true,"merged":[[36,0,36,1],[32,0,32,1],[33,0,33,1],[34,0,34,1],[35,0,35,1],[2,12,3,12],[2,13,3,13],[2,0,3,0],[2,2,3,2],[2,3,3,3],[2,4,3,4],[2,5,3,5],[2,7,3,7],[2,8,2,9],[2,11,3,11],[2,10,3,10],[11,0,13,0],[12,2,13,2],[12,3,13,3],[2,6,3,6],[11,4,13,4]]}
[]
["■管理簿（研究室用）※入力不要",null,null,null,null,null,null,null,null,null,null,null,"（単位：円）"]
["承認番号","申請者区分","所属機関又は組織等","申請者","職名","設備等番号","設備等名称","委託内容","実施期間【実績】",null,"納品日","委託料","消耗品費等","委託料計"]
[null,"（学内or学外）",null,null,null,null,null,null,"開始日","終了日"]
[null,null,{"$f":"測定・分析等委託申請書!D9","v":0},{"$f":"測定・分析等委託申請書!B11","v":0},{"$f":"測定・分析等委託申請書!K11","v":0},{"$f":"測定・分析等委託申請書!D13","v":0},{"$f":"測定・分析等委託申請書!H13","v":{"$error":"#N/A"}},{"$f":"測定・分析等委託申請書!D14","v":0},{"$f":"MIN(A15:A24)","v":"00:00:00"},{"$f":"MAX(A15:A24)","v":"00:00:00"},{"$f":"MAX(E15:E24)","v":"00:00:00"},{"$f":"D25","v":0},{"$f":"E37","v":0},{"$f":"SUM(L5:M5)","v":0}]
[]
[null,"学内",null,null,null,{"$f":"F5&別表２!M5","v":"01回当たり\n(事前講習)"}]
[null,"学術機関"]
[null,"民間機関"]
["■実績簿　※要入力"]
["（１）測定・分析等委託"]
["実施日","測定・分析等委託",null,null,"納品日"]
[null,"実施時間","利用単位","委託料（円）"]
[null,"（合計）"]
[null,null,null,{"$f":"VLOOKUP($F$5&$H$5&C15,別表２!$G$5:$J$11,MATCH('実績簿（管理責任者用）'!$B$5,別表２!$G$5:$J$5,0),0)*IF(C15=$E$27,B15,1)","v":{"$error":"#N/A"}}]
[null,null,null,{"$f":"VLOOKUP($F$5&C16,別表２!$G$5:$J$11,MATCH('実績簿（管理責任者用）'!$B$5,別表２!$G$5:$J$5,0),0)*IF(C16=$E$28,1,B16)","v":{"$error":"#N/A"}}]
[null,null,null,{"$f":"VLOOKUP($F$5&C17,別表２!$G$5:$J$11,MATCH('実績簿（管理責任者用）'!$B$5,別表２!$G$5:$J$5,0),0)*IF(C17=$E$28,1,B17)","v":{"$error":"#N/A"}}]
[null,null,null,{"$f":"VLOOKUP($F$5&C18,別表２!$G$5:$J$11,MATCH('実績簿（管理責任者用）'!$B$5,別表２!$G$5:$J$5,0),0)*IF(C18=$E$28,1,B18)","v":{"$error":"#N/A"}}]
[null,null,null,{"$f":"VLOOKUP($F$5&C19,別表２!$G$5:$J$11,MATCH('実績簿（管理責任者用）'!$B$5,別表２!$G$5:$J$5,0),0)*IF(C19=$E$28,1,B19)","v":{"$error":"#N/A"}}]
[null,null,null,{"$f":"VLOOKUP($F$5&C20,別表２!$G$5:$J$11,MATCH('実績簿（管理責任者用）'!$B$5,別表２!$G$5:$J$5,0),0)*IF(C20=$E$28,1,B20)","v":{"$error":"#N/A"}}]
[null,null,null,{"$f":"VLOOKUP($F$5&C21,別表２!$G$5:$J$11,MATCH('実績簿（管理責任者用）'!$B$5,別表２!$G$5:$J$5,0),0)*IF(C21=$E$28,1,B21)","v":{"$error":"#N/A"}}]
[null,null,null,{"$f":"VLOOKUP($F$5&C22,別表２!$G$5:$J$11,MATCH('実績簿（管理責任者用）'!$B$5,別表２!$G$5:$J$5,0),0)*IF(C22=$E$28,1,B22)","v":{"$error":"#N/A"}}]
[null,null,null,{"$f":"VLOOKUP($F$5&C23,別表２!$G$5:$J$11,MATCH('実績簿（管理責任者用）'!$B$5,別表２!$G$5:$J$5,0),0)*IF(C23=$E$28,1,B23)","v":{"$error":"#N/A"}}]
[null,null,null,{"$f":"VLOOKUP($F$5&C24,別表２!$G$5:$J$11,MATCH('実績簿（管理責任者用）'!$B$5,別表２!$G$5:$J$5,0),0)*IF(C24=$E$28,1,B24)","v":{"$error":"#N/A"}}]
[{"$f":"COUNTA(A15:A24)","v":0},{"$f":"SUM(B15:B24)","v":0},null,{"$f":"SUMIF(D15:D24,\"<>#N/A\")","v":0}]
["※行が足りない場合は、行全体をコピーのうえ挿入してください。"]
[null,null,null,null,"1時間当たり"]
[null,null,null,null,"1日当たり"]
[null,null,null,null,"1回当たり"]
[]
["（２）消耗品費等"]
["　　【注意】料金規程の算定において消耗品の積算に含めず、別途請求することとなっている案件のみ記載"]
["内訳",null,"単価（税込み）","数量","計"]
[null,null,null,null,{"$f":"C34*D34","v":0}]
[null,null,null,null,{"$f":"C35*D35","v":0}]
[null,null,null,null,0]
[null,null,null,null,{"$f":"SUM(E34:E36)","v":0}]
["※行が足りない場合は、行全体をコピーのうえ挿入してください。"]

{"sheet":"管理表転記用","index":5,"n_rows":17,"n_cols":28,"rows_kept":17,"cut":false,"hidden":true,"merged":[[0,11,1,11],[0,7,0,8],[0,0,1,0],[0,2,1,2],[0,3,1,3],[0,4,1,4],[0,5,1,5],[0,6,1,6],[0,21,1,21],[0,16,0,20],[0,12,1,12],[0,13,1,13],[0,14,1,14],[0,15,1,15]]}
["承認番号","申請者区分","所属機関又は組織等","申請者","職名","設備等番号","設備等名称","実施期間【実績】",null,"実施日数","実施時間","納品日","委託料","消耗品費等","委託料計","管理部局","予算区分",null,null,null,null,"備考","➡以下、申請者及び請求先情報"]
[null,"（学内or学外）",null,null,null,null,null,"開始日","終了日","（合計）","（合計）",null,null,null,null,null,"経費名称","予算科目（運営費の場合）","予算部署（運営費の場合）","PJコード","請求処理方法",null,"所属機関住所","電話番号","メールアドレス","請求先住所等","請求先電話番号","請求先メールアドレス"]
[{"$f":"'実績簿（管理責任者用）'!A5","v":0},{"$f":"'実績簿（管理責任者用）'!B5","v":0},{"$f":"測定・分析等委託申請書!D9","v":0},{"$f":"測定・分析等委託申請書!B11","v":0},{"$f":"測定・分析等委託申請書!K11","v":0},{"$f":"測定・分析等委託申請書!D13","v":0},{"$f":"測定・分析等委託申請書!H13","v":{"$error":"#N/A"}},{"$f":"'実績簿（管理責任者用）'!I5","v":"00:00:00"},{"$f":"'実績簿（管理責任者用）'!J5","v":"00:00:00"},{"$f":"'実績簿（管理責任者用）'!A25","v":0},{"$f":"'実績簿（管理責任者用）'!B25","v":0},{"$f":"'実績簿（管理責任者用）'!K5","v":0},{"$f":"'実績簿（管理責任者用）'!L5","v":0},{"$f":"'実績簿（管理責任者用）'!M5","v":0},{"$f":"SUM(M3:N3)","v":0},{"$f":"VLOOKUP(F3,別表２!$A$6:$E$11,4,0)","v":{"$error":"#N/A"}},null,{"$f":"測定・分析等委託申請書!H19","v":0},{"$f":"測定・分析等委託申請書!N19","v":0},{"$f":"測定・分析等委託申請書!H21","v":0},null,null,{"$f":"測定・分析等委託申請書!D10","v":0},{"$f":"測定・分析等委託申請書!B12","v":0},{"$f":"測定・分析等委託申請書!K12","v":0},{"$f":"測定・分析等委託申請書!E16","v":0},{"$f":"測定・分析等委託申請書!D17","v":0},{"$f":"測定・分析等委託申請書!L17","v":0}]
[]
[]
[]
[]
[null,null,null,null,null,null,null,null,null,null,null,null,null,null,null,null,"大学運営費",null,null,null,"予算振替"]
[null,null,null,null,null,null,null,null,null,null,null,null,null,null,null,null,"大学運営費（機能強化経費）",null,null,null,"費用付替"]
[null,null,null,null,null,null,null,null,null,null,null,null,null,null,null,null,"大学運営費（特殊要因経費）",null,null,null,"請求書発行"]
[null,null,null,null,null,null,null,null,null,null,null,null,null,null,null,null,"大学運営費（その他）"]
[null,null,null,null,null,null,null,null,null,null,null,null,null,null,null,null,"寄附金"]
[null,null,null,null,null,null,null,null,null,null,null,null,null,null,null,null,"科学研究費助成事業等"]
[null,null,null,null,null,null,null,null,null,null,null,null,null,null,null,null,"受託研究等"]
[null,null,null,null,null,null,null,null,null,null,null,null,null,null,null,null,"間接経費"]
[null,null,null,null,null,null,null,null,null,null,null,null,null,null,null,null,"機関経理補助金"]
[null,null,null,null,null,null,null,null,null,null,null,null,null,null,null,null,"その他"]